bitfinex-derivatives/quotes_BTCF0:USTF0_20250129
["timestamp","ask_amount","ask_price","bid_price","bid_amount"]
[1738173230207,0.79260394,102610.0,102600.0,0.00114612]
[1738173230808,0.80250322,102610.0,102600.0,0.00114612]
[1738173231013,0.28621047,102590.0,102580.0,1.06724818]
[1738173231408,0.28621047,102590.0,102580.0,0.00146218]
[1738173231708,0.64701047,102590.0,102580.0,0.00146218]
[1738173231912,0.28621047,102590.0,102580.0,0.00146218]
[1738173232110,0.64701047,102590.0,102580.0,0.00146218]
[1738173233111,0.28621047,102590.0,102580.0,0.00146218]
[1738173233707,0.33257047,102590.0,102580.0,0.00146218]
[1738173234311,0.34209863,102590.0,102580.0,0.00146218]
[1738173235713,0.70289863,102590.0,102580.0,0.00146218]
[1738173237216,0.50791963,102590.0,102570.0,0.88251817]
[1738173237408,0.38822947,102580.0,102570.0,0.88251817]
[1738173238407,0.38822947,102580.0,102570.0,1.07753517]
[1738173238408,0.31922947,102580.0,102570.0,1.07753517]
[1738173238610,0.227998,102580.0,102570.0,1.14733517]
[1738173238814,0.194998,102580.0,102570.0,1.23856664]
[1738173239010,0.194998,102580.0,102570.0,1.79856664]
[1738173239215,0.194998,102580.0,102570.0,1.22699459]
[1738173239416,0.194998,102580.0,102570.0,1.27699459]
[1738173240113,0.194998,102580.0,102570.0,1.18876312]
[1738173240306,0.194998,102580.0,102570.0,1.27999459]
[1738173240819,0.194998,102580.0,102570.0,1.28199459]
[1738173241708,0.194989,102590.0,102580.0,0.194982]
[1738173241908,0.34108867,102600.0,102590.0,0.194979]
[1738173242121,0.14612267,102600.0,102590.0,0.81271047]
[1738173242515,0.14612267,102600.0,102590.0,1.32271047]
[1738173242911,0.34108267,102600.0,102590.0,1.22271047]
[1738173243111,0.34408267,102600.0,102590.0,1.131479]
[1738173243612,0.43531414,102600.0,102590.0,0.0336]
[1738173243822,0.32373759,102600.0,102590.0,0.0336]
[1738173244006,0.194979,102590.0,102580.0,0.747987]
[1738173244209,0.28621047,102590.0,102580.0,0.16]
[1738173244425,0.32121047,102590.0,102580.0,0.16]
[1738173244814,0.32121047,102590.0,102580.0,0.5208]
[1738173245622,0.229979,102590.0,102580.0,0.715798]
[1738173245823,0.194979,102590.0,102580.0,0.715798]
[1738173246523,0.194979,102590.0,102580.0,1.225798]
[1738173246717,0.28621047,102590.0,102580.0,1.225798]
[1738173247421,0.194979,102590.0,102580.0,1.225798]
[1738173248217,0.194979,102590.0,102580.0,1.31702947]
[1738173249828,0.194979,102590.0,102580.0,1.225798]
[1738173250322,0.194979,102590.0,102580.0,0.715798]
[1738173250917,0.194979,102590.0,102580.0,1.225798]
[1738173251329,0.19511412,102600.0,102590.0,0.194979]
[1738173251518,0.19511412,102600.0,102590.0,0.622079]
[1738173251719,0.19511412,102600.0,102590.0,0.657079]
[1738173252623,0.19811412,102600.0,102590.0,0.657079]
[1738173253026,0.19911412,102600.0,102590.0,0.657079]
[1738173256322,0.19911412,102600.0,102590.0,0.74831047]
[1738173256818,0.19911412,102600.0,102590.0,0.657079]
[1738173258323,0.29034559,102600.0,102590.0,0.657079]
[1738173258523,0.29034559,102600.0,102590.0,0.622079]
[1738173259219,0.19911412,102600.0,102590.0,0.622079]
[1738173260325,0.19911412,102600.0,102590.0,0.75331047]
[1738173260625,0.19911412,102600.0,102590.0,0.78701047]
[1738173260626,0.00414612,102600.0,102590.0,0.78701047]
[1738173260831,0.19910612,102600.0,102590.0,0.78701047]
[1738173264330,0.19910612,102600.0,102590.0,1.29701047]
[1738173265733,0.00414612,102600.0,102590.0,1.29701047]
[1738173266033,0.00414612,102600.0,102590.0,1.52882027]
[1738173269136,0.00414612,102600.0,102590.0,1.81858252]
[1738173272331,0.00414612,102600.0,102590.0,2.06984668]
[1738173275333,0.229942,102610.0,102600.0,0.19496]
[1738173275532,0.229942,102610.0,102600.0,0.75699147]
[1738173276243,0.229942,102610.0,102600.0,1.26699147]
[1738173276439,0.37764775,102620.0,102610.0,0.194941]
[1738173276739,0.41114775,102620.0,102610.0,0.555741]
[1738173276937,0.41114775,102620.0,102610.0,0.655741]
[1738173277145,0.41114775,102620.0,102610.0,0.74697247]
[1738173277329,0.37874775,102620.0,102610.0,0.74697247]
[1738173278042,0.26207312,102620.0,102610.0,0.74697247]
[1738173278241,0.07014612,102620.0,102610.0,0.74697247]
[1738173278942,0.03664612,102620.0,102610.0,0.74697247]
[1738173279141,0.03664612,102620.0,102610.0,0.81627247]
[1738173279142,0.03364612,102620.0,102610.0,0.81627247]
[1738173279440,0.00014612,102620.0,102610.0,0.81727247]
[1738173279928,0.00014612,102620.0,102610.0,0.82027247]
[1738173280941,0.00014612,102620.0,102610.0,1.22556305]
[1738173281242,1e-08,102620.0,102610.0,1.23548488]
[1738173281538,1e-08,102620.0,102610.0,1.26978488]
[1738173281739,1e-08,102620.0,102610.0,1.77978488]
[1738173283243,1e-08,102620.0,102610.0,1.82586488]
[1738173283537,1e-08,102620.0,102610.0,1.23548488]
[1738173283741,0.19492201,102620.0,102610.0,1.10248488]
[1738173284044,0.19492201,102620.0,102610.0,0.97695341]
[1738173284236,0.22652201,102620.0,102610.0,0.97695341]
[1738173284438,0.31775348,102620.0,102610.0,0.97695341]
[1738173284639,0.35265348,102620.0,102610.0,0.96703158]
[1738173285549,0.35265348,102620.0,102610.0,1.15492004]
[1738173286441,0.26142201,102620.0,102610.0,1.15492004]
[1738173289949,0.26142201,102620.0,102610.0,0.561741]
[1738173290251,0.35265348,102620.0,102610.0,0.561741]
[1738173292651,0.26142201,102620.0,102610.0,0.561741]
[1738173293750,0.26142201,102620.0,102610.0,0.65297247]
[1738173293956,0.22652201,102620.0,102610.0,0.70297247]
[1738173294146,0.19492201,102620.0,102610.0,0.73687247]
[1738173294348,0.19492201,102620.0,102610.0,1.24687247]
[1738173294544,0.19492201,102620.0,102610.0,1.19687247]
[1738173296451,1e-08,102620.0,102610.0,1.24687247]
[1738173296653,1e-08,102620.0,102610.0,0.73687247]
[1738173297154,1e-08,102620.0,102610.0,1.24687247]
[1738173297658,1e-08,102620.0,102610.0,1.4203766]
[1738173298050,0.19492201,102620.0,102610.0,1.4203766]
[1738173298754,1e-08,102620.0,102610.0,1.4203766]
[1738173299559,1e-08,102620.0,102610.0,1.4541766]
[1738173301054,1e-08,102620.0,102610.0,1.68551545]
[1738173303546,1e-08,102620.0,102610.0,1.71781545]
[1738173304064,1e-08,102620.0,102610.0,1.54431132]
[1738173307163,1e-08,102620.0,102610.0,1.03431132]
[1738173307465,1e-08,102620.0,102610.0,1.54431132]
[1738173308051,1e-08,102620.0,102610.0,1.909344]
[1738173311057,1e-08,102620.0,102610.0,1.955304]
[1738173312066,1e-08,102620.0,102610.0,2.2444036]
[1738173315670,1e-08,102620.0,102610.0,1.909344]
[1738173315868,1e-08,102620.0,102610.0,1.955264]
[1738173317981,1e-08,102620.0,102610.0,1.922964]
[1738173319386,1e-08,102620.0,102610.0,1.957864]
[1738173321079,1e-08,102620.0,102610.0,1.922964]
[1738173321281,1e-08,102620.0,102610.0,1.877044]
[1738173321482,0.03340001,102620.0,102610.0,1.843244]
[1738173321685,0.06580001,102620.0,102610.0,1.843244]
[1738173322485,0.06580001,102620.0,102610.0,2.1323088]
[1738173325380,0.06580001,102620.0,102610.0,1.843244]
[1738173325689,0.06580001,102620.0,102610.0,1.809344]
[1738173325883,0.10060001,102620.0,102610.0,1.809344]
[1738173329488,0.10060001,102620.0,102610.0,2.10645197]
[1738173333191,0.10060001,102620.0,102610.0,2.14275884]
[1738173337195,0.10060001,102620.0,102610.0,2.28275884]
[1738173338600,0.10060001,102620.0,102610.0,2.25136688]
[1738173338987,0.29552201,102620.0,102610.0,2.25136688]
[1738173339187,0.29552201,102620.0,102610.0,2.21506001]
[1738173340698,0.29552201,102620.0,102610.0,2.07506001]
[1738173342597,0.29552201,102620.0,102610.0,1.55762268]
[1738173343095,0.29552201,102620.0,102610.0,2.01762268]
[1738173343698,0.29552201,102620.0,102610.0,2.06762268]
[1738173344004,0.29552201,102620.0,102610.0,1.18158051]
[1738173344704,0.29552201,102620.0,102610.0,0.62158051]
[1738173345299,0.35536152,102620.0,102610.0,0.3668]
[1738173345514,0.19496,102600.0,102590.0,0.42078563]
[1738173345702,0.31463902,102600.0,102590.0,0.37071998]
[1738173346009,0.32409951,102600.0,102590.0,0.37071998]
[1738173346195,0.35839951,102600.0,102590.0,0.77603944]
[1738173346498,0.41823902,102600.0,102590.0,0.40546558]
[1738173346701,0.46395902,102600.0,102590.0,0.40546558]
[1738173346903,0.82475902,102600.0,102590.0,0.40546558]
[1738173347204,0.82575902,102600.0,102590.0,0.30786558]
[1738173347799,0.82675902,102600.0,102590.0,0.31386558]
[1738173348697,0.88963728,102600.0,102590.0,0.31386558]
[1738173350603,0.88963728,102600.0,102580.0,0.00014612]
[1738173350604,0.194979,102590.0,102580.0,0.00014612]
[1738173350903,0.64705764,102590.0,102580.0,0.00014612]
[1738173351804,0.64805764,102590.0,102580.0,0.00014612]
[1738173353706,0.94805764,102590.0,102580.0,1e-08]
[1738173355401,0.64805764,102590.0,102580.0,1e-08]
[1738173358016,0.69373764,102590.0,102580.0,1e-08]
[1738173358809,0.64805764,102590.0,102580.0,1e-08]
[1738173359009,0.69373764,102590.0,102580.0,1e-08]
[1738173359511,0.78136125,102590.0,102580.0,1e-08]
[1738173359700,0.78132125,102590.0,102580.0,1e-08]
[1738173360602,0.73568125,102590.0,102580.0,1e-08]
[1738173360801,0.37488125,102590.0,102580.0,1e-08]
[1738173361003,0.42052125,102590.0,102580.0,1e-08]
[1738173361713,0.37488125,102590.0,102580.0,1e-08]
[1738173362110,0.32924261,102590.0,102580.0,1e-08]
[1738173362407,0.32924261,102590.0,102580.0,0.64707665]
[1738173362408,0.241619,102590.0,102580.0,0.64707665]
[1738173362614,0.241619,102590.0,102580.0,0.71477665]
[1738173362813,0.241619,102590.0,102580.0,0.62349801]
[1738173363297,0.195979,102590.0,102580.0,0.71477665]
[1738173363506,0.001,102590.0,102580.0,0.75477665]
[1738173366408,0.19511312,102600.0,102590.0,0.194979]
[1738173366721,0.19511312,102600.0,102590.0,0.589979]
[1738173367210,0.00014612,102600.0,102590.0,0.72125764]
[1738173367713,0.00114612,102600.0,102590.0,0.68125764]
[1738173368103,0.00114612,102600.0,102590.0,1.19125764]
[1738173368403,0.00114612,102600.0,102590.0,1.31125764]
[1738173368711,0.00114612,102600.0,102590.0,1.31225764]
[1738173369107,0.00114612,102600.0,102590.0,0.68225764]
[1738173369303,0.00114612,102600.0,102590.0,0.68325764]
[1738173369304,0.00014612,102600.0,102590.0,0.68325764]
[1738173370513,0.00014612,102600.0,102590.0,0.72325764]
[1738173370712,0.00014612,102600.0,102590.0,0.68325764]
[1738173371616,0.19510612,102600.0,102590.0,0.591979]
[1738173371914,0.28638476,102600.0,102590.0,0.591979]
[1738173373117,0.19510612,102600.0,102590.0,0.591979]
[1738173376211,0.28638476,102600.0,102590.0,0.591979]
[1738173376515,0.28638476,102600.0,102590.0,0.397]
[1738173376711,0.28638476,102600.0,102590.0,0.0362]
[1738173376712,0.4232234,102600.0,102590.0,0.0362]
[1738173376918,0.4913234,102600.0,102590.0,0.002]
[1738173377503,0.8521234,102600.0,102590.0,0.002]
[1738173377813,0.76084476,102600.0,102590.0,0.002]
[1738173379109,0.8521234,102600.0,102590.0,0.002]
[1738173379817,0.9571634,102600.0,102580.0,1e-08]
[1738173380020,0.64705764,102590.0,102580.0,1e-08]
[1738173380224,0.33177764,102590.0,102580.0,1e-08]
[1738173381109,0.28625764,102590.0,102580.0,1e-08]
[1738173381311,0.36517764,102590.0,102580.0,1e-08]
[1738173382026,0.72697764,102590.0,102580.0,1e-08]
[1738173382517,0.72697764,102590.0,102580.0,0.00100001]
[1738173382921,0.36617764,102590.0,102580.0,0.00100001]
[1738173383421,0.57036552,102590.0,102580.0,0.00100001]
[1738173383815,0.57036552,102590.0,102580.0,1e-08]
[1738173384022,0.57036552,102590.0,102580.0,0.00200001]
[1738173384722,0.57036552,102590.0,102580.0,0.55779801]
[1738173385417,0.58010157,102590.0,102580.0,0.55779801]
[1738173390226,0.40990293,102590.0,102580.0,0.55779801]
[1738173390534,0.44564688,102590.0,102580.0,0.55779801]
[1738173393333,0.53692552,102590.0,102580.0,0.55779801]
[1738173393525,0.42009404,102590.0,102580.0,0.55779801]
[1738173395237,0.42009404,102590.0,102580.0,0.00200001]
[1738173395429,0.37461404,102590.0,102580.0,0.00200001]
[1738173395733,0.42009404,102590.0,102580.0,0.36280001]
[1738173395929,0.45479404,102590.0,102580.0,0.36280001]
[1738173396340,0.57162552,102590.0,102580.0,0.36280001]
[1738173397027,0.57162552,102590.0,102580.0,0.00200001]
[1738173397426,0.93242552,102590.0,102580.0,0.00200001]
[1738173397830,0.93238552,102590.0,102580.0,0.00200001]
[1738173399035,0.57158552,102590.0,102580.0,0.00200001]
[1738173399830,0.71762487,102590.0,102580.0,0.00200001]
[1738173400043,0.63026847,102590.0,102580.0,0.00200001]
[1738173401236,0.63026847,102590.0,102580.0,0.36280001]
[1738173401431,0.63026847,102590.0,102580.0,0.00200001]
[1738173405846,0.68868421,102590.0,102580.0,0.00200001]
[1738173408745,0.54264486,102590.0,102580.0,0.00200001]
[1738173412038,0.41658622,102590.0,102580.0,0.36280001]
[1738173412244,0.50786486,102590.0,102580.0,0.36280001]
[1738173412631,0.50786486,102590.0,102580.0,0.00200001]
[1738173414140,0.86866486,102590.0,102580.0,0.00200001]
[1738173414533,0.50786486,102590.0,102580.0,0.00200001]
[1738173414741,0.86866486,102590.0,102580.0,0.00200001]
[1738173420954,0.195017,102570.0,102560.0,0.23226821]
[1738173421143,0.78369428,102570.0,102560.0,0.23226821]
[1738173422348,0.78469428,102570.0,102560.0,0.23226821]
[1738173425654,0.195036,102560.0,102550.0,0.00014611]
[1738173425861,0.71461464,102560.0,102550.0,0.00014611]
[1738173427444,0.71461464,102560.0,102550.0,0.00114611]
[1738173428462,0.97714194,102560.0,102550.0,0.00114611]
[1738173430057,1.01204194,102560.0,102550.0,0.00114611]
[1738173433958,0.79475464,102560.0,102550.0,0.00014611]
[1738173434156,0.60171864,102560.0,102540.0,0.033]
[1738173434463,0.64713364,102550.0,102540.0,0.033]
[1738173434654,0.195074,102540.0,102530.0,0.00034]
[1738173434854,0.33159264,102540.0,102530.0,0.36114]
[1738173435055,0.33159264,102540.0,102530.0,0.00034]
[1738173435663,0.33159264,102540.0,102530.0,0.36114]
[1738173435852,0.78367128,102540.0,102530.0,0.00034]
[1738173436056,0.88437128,102540.0,102530.0,0.00034]
[1738173437466,0.195112,102520.0,102510.0,0.23180941]
[1738173437662,0.195131,102510.0,102500.0,0.39125381]
[1738173437856,0.80708828,102510.0,102500.0,0.35895381]
[1738173439268,0.80808828,102510.0,102500.0,0.35895381]
[1738173439666,0.80808828,102510.0,102500.0,0.36095381]
[1738173440165,0.19515,102500.0,102490.0,0.28361308]
[1738173440369,0.195188,102480.0,102470.0,0.40566647]
[1738173440581,0.78378528,102480.0,102470.0,0.40566647]
[1738173441164,0.33170664,102480.0,102470.0,0.40566647]
[1738173441365,0.69250664,102480.0,102470.0,0.40566647]
[1738173441966,0.69350664,102480.0,102470.0,0.17393863]
[1738173442160,0.78578528,102480.0,102470.0,0.17793863]
[1738173442366,0.74054528,102480.0,102470.0,0.17793863]
[1738173442571,0.85294528,102480.0,102470.0,0.17793863]
[1738173442770,0.85294528,102480.0,102470.0,0.13331733]
[1738173443070,0.195207,102470.0,102460.0,0.0328]
[1738173443262,0.64728564,102470.0,102460.0,0.0328]
[1738173443670,0.195226,102460.0,102450.0,0.34934131]
[1738173443861,0.64730464,102460.0,102450.0,0.34934131]
[1738173444758,0.195226,102460.0,102450.0,0.34934131]
[1738173444963,0.195226,102460.0,102450.0,0.63586495]
[1738173445165,0.196226,102460.0,102450.0,0.54758631]
[1738173445367,0.197226,102460.0,102450.0,0.86234131]
[1738173445562,0.64930464,102460.0,102450.0,0.86234131]
[1738173445968,0.64930464,102460.0,102450.0,0.86034131]
[1738173446365,0.64930464,102460.0,102450.0,0.00246404]
[1738173446566,0.74058328,102460.0,102450.0,0.00246404]
[1738173446862,0.68280464,102460.0,102450.0,0.00246404]
[1738173447269,0.048816,102440.0,102410.0,0.556119]
[1738173447463,0.28658064,102420.0,102410.0,0.3951]
[1738173447664,0.195302,102420.0,102410.0,0.68169964]
[1738173448269,0.195302,102420.0,102410.0,0.590421]
[1738173448573,0.196302,102420.0,102410.0,0.590421]
[1738173448973,0.197302,102420.0,102410.0,0.590421]
[1738173449268,0.197302,102420.0,102410.0,0.68169964]
[1738173450169,0.197302,102420.0,102410.0,0.590421]
[1738173450361,0.197302,102420.0,102410.0,0.654721]
[1738173451269,0.197302,102420.0,102410.0,0.4594]
[1738173451481,0.28858064,102420.0,102410.0,0.4594]
[1738173453168,0.298501,102420.0,102410.0,0.4594]
[1738173454064,0.298501,102420.0,102410.0,0.55067864]
[1738173454065,0.20722236,102420.0,102410.0,0.55067864]
[1738173454266,0.20722236,102420.0,102410.0,0.4594]
[1738173454476,0.20722236,102420.0,102410.0,0.74599964]
[1738173454873,0.20722236,102420.0,102410.0,0.54086729]
[1738173455775,0.20722236,102420.0,102410.0,0.44958865]
[1738173456171,0.20722236,102420.0,102410.0,0.293921]
[1738173456869,0.56802236,102420.0,102410.0,0.293921]
[1738173457070,0.20722236,102420.0,102410.0,0.654721]
[1738173457268,0.08750616,102440.0,102410.0,0.98195728]
[1738173457471,0.28277516,102440.0,102430.0,0.64736164]
[1738173458072,0.19541512,102440.0,102430.0,0.64736164]
[1738173459176,0.19541512,102440.0,102430.0,1.066083]
[1738173459378,0.20540539,102440.0,102430.0,1.066083]
[1738173459574,0.19541512,102440.0,102430.0,1.066083]
[1738173459769,0.19541512,102440.0,102430.0,1.15736164]
[1738173459969,0.00014612,102440.0,102430.0,1.15736164]
[1738173460578,0.19541012,102440.0,102430.0,1.15736164]
[1738173460878,0.19541012,102440.0,102430.0,1.066083]
[1738173461070,0.19541012,102440.0,102430.0,0.556083]
[1738173461979,0.19541012,102440.0,102430.0,0.64736164]
[1738173462276,0.19541012,102440.0,102430.0,0.556083]
[1738173462581,0.19541012,102440.0,102430.0,0.64736164]
[1738173463476,0.00014612,102440.0,102430.0,0.64736164]
[1738173463675,0.00014612,102440.0,102430.0,0.69736164]
[1738173464075,0.00014612,102440.0,102430.0,0.64736164]
[1738173464487,0.00014612,102440.0,102430.0,0.69736164]
[1738173464681,0.00014612,102440.0,102430.0,0.64736164]
[1738173465187,0.00014612,102440.0,102430.0,0.75736164]
[1738173465387,1e-08,102440.0,102430.0,0.75736164]
[1738173468288,0.20388545,102450.0,102440.0,0.195264]
[1738173468485,0.35066068,102460.0,102450.0,0.195245]
[1738173468682,0.35066068,102460.0,102450.0,0.32652364]
[1738173468990,0.35066068,102460.0,102450.0,0.28652364]
[1738173469783,0.38079203,102460.0,102450.0,0.28652364]
[1738173469981,0.38079203,102460.0,102450.0,0.195245]
[1738173470383,0.38079203,102460.0,102450.0,0.28652364]
[1738173470789,0.37979203,102460.0,102450.0,0.28652364]
[1738173470990,0.74059203,102460.0,102450.0,0.28852364]
[1738173471394,0.74059203,102460.0,102450.0,0.197245]
[1738173471692,0.37979203,102460.0,102450.0,0.197245]
[1738173471878,0.37979203,102460.0,102450.0,0.28852364]
[1738173472594,0.74059203,102460.0,102450.0,0.28852364]
[1738173473696,0.18455903,102460.0,102450.0,0.79060228]
[1738173473885,0.17478811,102460.0,102450.0,0.79060228]
[1738173474388,0.55615612,102470.0,102450.0,0.50407864]
[1738173474696,0.55615612,102470.0,102460.0,0.35320464]
[1738173475095,0.19535612,102470.0,102460.0,0.35320464]
[1738173475487,0.19635612,102470.0,102460.0,0.35320464]
[1738173476198,0.56805883,102470.0,102460.0,0.35320464]
[1738173476697,0.52795956,102470.0,102460.0,0.35320464]
[1738173477287,0.88875956,102470.0,102460.0,0.86320464]
[1738173477897,0.88775956,102470.0,102460.0,0.35320464]
[1738173478899,0.88675956,102470.0,102460.0,0.35520464]
[1738173479197,0.52595956,102470.0,102460.0,0.35520464]
[1738173480892,0.52595956,102470.0,102460.0,0.71600464]
[1738173481087,0.33074956,102470.0,102460.0,0.71600464]
[1738173481295,0.01004883,102470.0,102460.0,0.77600464]
[1738173481598,0.20525583,102470.0,102460.0,0.71600464]
[1738173482201,0.20525583,102470.0,102460.0,0.76600464]
[1738173483193,0.20525583,102470.0,102460.0,0.71600464]
[1738173483900,0.20525583,102470.0,102460.0,0.83600464]
[1738173491194,0.20525583,102470.0,102460.0,0.86850464]
[1738173493301,0.01004883,102470.0,102460.0,0.86850464]
[1738173493604,0.00014612,102470.0,102460.0,0.86850464]
[1738173494507,0.19535312,102470.0,102460.0,0.86850464]
[1738173494705,0.19535312,102470.0,102460.0,0.68180464]
[1738173494904,0.25865312,102470.0,102460.0,0.64930464]
[1738173495105,0.25865312,102470.0,102460.0,0.69930464]
[1738173496309,0.25865312,102470.0,102460.0,0.64930464]
[1738173497204,0.25865312,102470.0,102460.0,0.69930464]
[1738173497607,0.25865312,102470.0,102460.0,0.64930464]
[1738173498320,0.25865312,102470.0,102460.0,0.74930464]
[1738173499413,0.25865312,102470.0,102460.0,0.64930464]
[1738173500811,0.29065312,102470.0,102460.0,0.64930464]
[1738173501014,0.65145312,102470.0,102460.0,0.197226]
[1738173501208,0.29065312,102470.0,102460.0,0.197226]
[1738173501408,0.65145312,102470.0,102460.0,0.00217725]
[1738173501618,0.29065312,102470.0,102460.0,0.19740325]
[1738173501817,0.29065312,102470.0,102460.0,0.64948189]
[1738173502518,0.29065312,102470.0,102460.0,0.55820325]
[1738173503220,0.29065312,102470.0,102460.0,0.64948189]
[1738173508022,0.29065312,102470.0,102460.0,0.55820325]
[1738173508521,0.29065312,102470.0,102460.0,0.19740325]
[1738173509121,0.29065312,102470.0,102460.0,0.00217725]
[1738173509416,0.74273176,102470.0,102460.0,0.00217725]
[1738173509806,0.195226,102460.0,102450.0,0.29036471]
[1738173510018,0.69226464,102460.0,102450.0,0.29036471]
[1738173510722,0.69226464,102460.0,102450.0,0.28361101]
[1738173511323,0.69226464,102460.0,102450.0,0.08099782]
[1738173511518,0.69226464,102460.0,102450.0,0.03109782]
[1738173512426,0.69326464,102460.0,102450.0,0.03309782]
[1738173513122,0.86819231,102460.0,102450.0,0.002]
[1738173513328,0.86819231,102460.0,102430.0,0.0301]
[1738173513329,0.195264,102440.0,102430.0,0.0301]
[1738173513526,0.69226264,102440.0,102430.0,0.0301]
[1738173514424,0.69326264,102440.0,102430.0,0.0301]
[1738173514721,0.75776264,102440.0,102430.0,0.0301]
[1738173515224,1.11856264,102440.0,102430.0,0.0301]
[1738173516220,1.11856264,102440.0,102420.0,0.23485096]
[1738173516221,0.195283,102430.0,102420.0,0.23485096]
[1738173516413,0.64736164,102430.0,102420.0,0.23485096]
[1738173517012,0.45207864,102430.0,102410.0,0.652216]
[1738173517218,0.195302,102420.0,102410.0,0.652216]
[1738173518931,0.196302,102420.0,102410.0,0.652216]
[1738173519633,0.197302,102420.0,102410.0,0.652216]
[1738173519818,0.18455728,102420.0,102400.0,0.295338]
[1738173520023,0.28659964,102410.0,102400.0,0.1318]
[1738173520524,0.64739964,102410.0,102400.0,0.1318]
[1738173521824,0.64839964,102410.0,102400.0,0.1]
[1738173522828,0.64839964,102410.0,102400.0,0.29534]
[1738173522829,0.33247964,102410.0,102400.0,0.29534]
[1738173523139,0.242201,102410.0,102400.0,0.29534]
[1738173523330,0.33347964,102410.0,102400.0,0.32824]
[1738173523530,0.33247964,102410.0,102400.0,0.32824]
[1738173523721,0.33347964,102410.0,102400.0,0.32824]
[1738173523929,0.241201,102410.0,102400.0,0.32824]
[1738173524126,0.242201,102410.0,102400.0,0.32824]
[1738173524533,0.197321,102410.0,102400.0,0.32824]
[1738173526027,0.197321,102410.0,102400.0,0.41951864]
[1738173526233,0.197321,102410.0,102400.0,0.78031864]
[1738173526528,0.197321,102410.0,102400.0,0.68904]
[1738173526937,0.196321,102410.0,102400.0,0.68904]
[1738173527826,0.196321,102410.0,102400.0,0.78031864]
[1738173528127,0.001,102410.0,102400.0,0.83031864]
[1738173528337,0.001,102410.0,102400.0,0.78031864]
[1738173529238,0.29646837,102420.0,102410.0,0.195321]
[1738173529428,0.20518973,102420.0,102410.0,0.258221]
[1738173530333,0.20818973,102420.0,102410.0,0.258221]
[1738173536433,0.01287673,102420.0,102410.0,0.76029964]
[1738173536631,0.01287673,102420.0,102410.0,0.34949964]
[1738173536632,0.20817873,102420.0,102410.0,0.34949964]
[1738173537535,0.20817873,102420.0,102410.0,0.71029964]
[1738173537735,0.20817873,102420.0,102410.0,0.85949964]
[1738173538235,0.20817873,102420.0,102410.0,1.27029964]
[1738173538638,0.20817873,102420.0,102410.0,0.34949964]
[1738173538945,0.20817873,102420.0,102410.0,0.258221]
[1738173539941,0.29945737,102420.0,102410.0,0.258221]
[1738173540143,0.29945737,102420.0,102410.0,0.0629]
[1738173540144,0.66025737,102420.0,102410.0,0.0629]
[1738173542450,0.77651344,102420.0,102410.0,0.0629]
[1738173544348,0.82131344,102420.0,102410.0,0.0629]
[1738173545749,1.02583988,102420.0,102410.0,0.0301]
[1738173546550,0.195321,102410.0,102400.0,0.328231]
[1738173546753,0.64739964,102410.0,102400.0,0.1329]
[1738173548451,0.96818215,102410.0,102400.0,0.1329]
[1738173551660,0.92166351,102410.0,102400.0,0.1329]
[1738173551850,0.51610351,102410.0,102400.0,0.41951864]
[1738173552053,0.51610351,102410.0,102400.0,0.32824]
[1738173552249,0.37024867,102410.0,102400.0,0.32824]
[1738173552661,0.46152731,102410.0,102400.0,0.32824]
[1738173553860,0.37024867,102410.0,102400.0,0.32824]
[1738173554158,0.37024867,102410.0,102400.0,0.41951864]
[1738173555660,0.31226684,102410.0,102400.0,0.41951864]
[1738173556861,0.31226684,102410.0,102400.0,0.78031864]
[1738173557055,0.31226684,102410.0,102400.0,0.68904]
[1738173557550,0.31226684,102410.0,102400.0,0.78031864]
[1738173560054,0.31226684,102410.0,102400.0,0.32824]
[1738173560759,0.31226684,102410.0,102400.0,0.68904]
[1738173560961,0.31226684,102410.0,102400.0,0.78031864]
[1738173562659,0.195321,102410.0,102400.0,0.78031864]
[1738173563458,0.32213457,102420.0,102410.0,0.195321]
[1738173563661,0.32213457,102420.0,102410.0,0.257721]
[1738173564466,0.77421321,102420.0,102410.0,0.0624]
[1738173564669,0.77421321,102420.0,102410.0,0.0307]
[1738173564960,0.195321,102410.0,102400.0,0.328234]
[1738173565154,0.28659964,102410.0,102400.0,0.328234]
[1738173566359,0.64739964,102410.0,102400.0,0.328234]
[1738173566562,0.64739964,102410.0,102400.0,0.1329]
[1738173568765,0.69207964,102410.0,102400.0,0.1329]
[1738173569167,0.95520392,102410.0,102400.0,0.1329]
[1738173571866,0.95520392,102410.0,102400.0,0.6429]
[1738173572166,1.01318575,102410.0,102400.0,0.6429]
[1738173572368,1.01318575,102410.0,102400.0,0.1329]
[1738173574666,1.01318575,102410.0,102400.0,0.32824]
[1738173574667,0.56106711,102410.0,102400.0,0.32824]
[1738173574862,0.56106711,102410.0,102400.0,0.68904]
[1738173575266,0.56106711,102410.0,102400.0,0.32824]
[1738173575470,0.56106711,102410.0,102400.0,0.68904]
[1738173575766,0.51642711,102410.0,102400.0,0.78031864]
[1738173576156,0.34149944,102410.0,102400.0,0.78031864]
[1738173576355,0.34149944,102410.0,102400.0,0.68904]
[1738173576769,0.43277808,102410.0,102400.0,0.68904]
[1738173577969,0.34149944,102410.0,102400.0,0.68904]
[1738173578266,0.43277808,102410.0,102400.0,0.68904]
[1738173579764,0.43277808,102410.0,102400.0,0.73904]
[1738173579965,0.34149944,102410.0,102400.0,0.73904]
[1738173580160,0.31233302,102410.0,102400.0,0.73904]
[1738173581367,0.31233302,102410.0,102400.0,0.83031864]
[1738173581870,0.31233302,102410.0,102400.0,0.73904]
[1738173582767,0.11701202,102410.0,102400.0,0.83031864]
[1738173583372,0.11701202,102410.0,102400.0,0.68904]
[1738173584072,0.11701202,102410.0,102400.0,0.73904]
[1738173585360,0.31233302,102410.0,102400.0,0.73904]
[1738173585675,0.11701202,102410.0,102400.0,0.73904]
[1738173587976,0.11701202,102410.0,102400.0,0.83031864]
[1738173588774,0.32220075,102420.0,102410.0,0.195321]
[1738173588975,0.32220075,102420.0,102410.0,0.672621]
[1738173589675,0.32220075,102420.0,102410.0,0.622621]
[1738173589875,0.32420075,102420.0,102410.0,0.672621]
[1738173590077,0.32520075,102420.0,102410.0,0.672621]
[1738173590280,0.32520075,102420.0,102410.0,0.622621]
[1738173591880,0.41291809,102420.0,102410.0,0.622621]
[1738173593083,0.41291809,102420.0,102410.0,0.672621]
[1738173595772,0.29590607,102420.0,102410.0,0.672621]
[1738173596781,0.29590607,102420.0,102410.0,0.622621]
[1738173597080,0.29590607,102420.0,102410.0,0.672621]
[1738173597778,0.10059407,102420.0,102410.0,0.672621]
[1738173597973,0.09071734,102420.0,102410.0,0.76389964]
[1738173598378,0.03821734,102420.0,102410.0,1.27389964]
[1738173598574,0.26333658,102430.0,102420.0,0.195302]